fUSD/lending_fUSD_20260419
["ID","MTS","AMOUNT","RATE_DAILY","PERIOD"]
[420826153,1776595358015,-173.56879299,0.00010872,2]
[420826154,1776595358047,-245.20992127,0.00010872,2]
[420826155,1776595358079,-500.0,0.00010872,2]
[420826156,1776595358523,-500.0,0.00010872,2]
[420826157,1776595358628,-500.0,0.00010872,2]
[420826158,1776595358659,-224.24555301,0.00010872,2]
[420826159,1776595358689,-508.28380624,0.00010872,2]
[420826160,1776595358720,-500.0,0.00010872,2]
[420826161,1776595358749,-134.85656558,0.00010872,2]
[420826162,1776595358875,-365.14343442,0.00010872,2]
[420826163,1776595358909,-423.3956564,0.00010872,2]
[420826164,1776595358938,-500.0,0.00010872,2]
[420826165,1776595358969,-500.0,0.00010872,2]
[420826166,1776595359007,-500.0,0.00010872,2]
[420826167,1776595359044,-274.82762252,0.00010872,2]
[420826168,1776595359082,-500.0,0.00010872,2]
[420826169,1776595359119,-500.0,0.00010872,2]
[420826170,1776595359154,-500.0,0.00010872,2]
[420826171,1776595359191,-500.0,0.00010872,2]
[420826172,1776595359226,-373.27657332,0.00010872,2]
[420826173,1776595361698,-126.72342668,0.00010872,2]
[420826174,1776595361743,-500.0,0.00010872,2]
[420826175,1776595362663,-500.0,0.00010872,2]
[420826176,1776595362698,-500.0,0.00010872,2]
[420826177,1776595362727,-199.24,0.00010872,2]
[420826178,1776595362754,-520.43477648,0.00010873,2]
[420826179,1776595362782,-160.18436767,0.00010873,2]
[420826180,1776595364708,-358.73414175,0.00010873,2]
[420826181,1776595364723,-160.18436767,0.00010873,2]
[420826182,1776595364739,-4986.84485834,0.00010873,2]
[420826183,1776595364769,-10000.01,0.00010873,2]
[420826184,1776595364836,-10000.01,0.00010873,2]
[420826185,1776595523864,1726.51369901,0.00032876,120]
[420826186,1776595589951,300.271467,0.00032877,120]
[420826187,1776595677735,1726.29,0.00032876,120]
[420826188,1776595821068,-244.0,9.863e-05,2]
[420826189,1776595821097,-260.0,9.863e-05,2]
[420826190,1776595821126,-1200.0,0.00010772,2]
[420826191,1776595821155,-300.0,0.00010772,2]
[420826192,1776595821240,-5992.01,0.00010773,2]
[420826193,1776595821299,-10000.01,0.00010773,2]
[420826194,1776595821448,-10000.01,0.00010773,2]
[420826195,1776595821582,-10000.01,0.00010773,2]
[420826196,1776595821678,-10000.01,0.00010773,2]
[420826197,1776595821800,-2214.3442,0.00010773,2]
[420826198,1776595821832,-150.0,0.00010865,2]
[420826199,1776595821863,-151.0,0.00010866,2]
[420826200,1776595821893,-500.0,0.00010866,2]
[420826201,1776595821923,-151.0,0.00010866,2]
[420826202,1776595821953,-500.0,0.00010866,2]
[420826203,1776595821983,-151.0,0.00010866,2]
[420826204,1776595822011,-500.0,0.00010866,2]
[420826205,1776595822041,-500.0,0.00010866,2]
[420826206,1776595822071,-151.0,0.00010866,2]
[420826207,1776595824034,-63.3216,0.00010866,2]
[420826208,1776595824130,-436.6784,0.00010866,2]
[420826209,1776595824162,-151.0,0.00010866,2]
[420826210,1776595824190,-500.0,0.00010866,2]
[420826211,1776595824219,-151.0,0.00010866,2]
[420826212,1776595824249,-500.0,0.00010866,2]
[420826213,1776595824278,-151.0,0.00010866,2]
[420826214,1776595824308,-500.0,0.00010866,2]
[420826215,1776595824339,-151.0,0.00010866,2]
[420826216,1776595824367,-500.0,0.00010866,2]
[420826217,1776595824397,-151.0,0.00010866,2]
[420826218,1776595824428,-395.24826756,0.00010866,2]
[420826219,1776595824456,-151.0,0.00010866,2]
[420826220,1776595824485,-151.0,0.00010866,2]
[420826221,1776595824514,-500.0,0.00010872,2]
[420826222,1776595824542,-500.0,0.00010872,2]
[420826223,1776595824784,-222.15666488,0.00010872,2]
[420826224,1776595826790,-86.50417075,0.00010872,2]
[420826225,1776595826817,-500.0,0.00010872,2]
[420826226,1776595826845,-500.0,0.00010872,2]
[420826227,1776595826879,-500.0,0.00010872,2]
[420826228,1776595826913,-500.0,0.00010872,2]
[420826229,1776595826944,-500.0,0.00010872,2]
[420826230,1776595826977,-500.0,0.00010872,2]
[420826231,1776595827009,-500.0,0.00010872,2]
[420826232,1776595827041,-500.0,0.00010872,2]
[420826233,1776595827073,-500.0,0.00010872,2]
[420826234,1776595827105,-327.0016585,0.00010872,2]
[420826235,1776595827197,-172.9983415,0.00010872,2]
[420826236,1776595827230,-500.0,0.00010872,2]
[420826237,1776595827264,-500.0,0.00010872,2]
[420826238,1776595827298,-500.0,0.00010872,2]
[420826239,1776595827331,-500.0,0.00010872,2]
[420826240,1776595827362,-500.0,0.00010872,2]
[420826241,1776595827396,-500.0,0.00010872,2]
[420826242,1776595827429,-500.0,0.00010872,2]
[420826243,1776595827461,-500.0,0.00010872,2]
[420826244,1776595827494,-500.0,0.00010872,2]
[420826245,1776595827526,-154.013317,0.00010872,2]
[420826246,1776595827608,-345.986683,0.00010872,2]
[420826247,1776595827647,-500.0,0.00010872,2]
[420826248,1776595828091,-244.28395978,0.00010872,2]
[420826249,1776595828126,-500.0,0.00010872,2]
[420826250,1776595828157,-500.0,0.00010872,2]
[420826251,1776595828189,-218.23072293,0.00010872,2]
[420826252,1776595828222,-500.0,0.00010872,2]
[420826253,1776595828254,-500.0,0.00010872,2]
[420826254,1776595828286,-500.0,0.00010872,2]
[420826255,1776595828315,-500.0,0.00010872,2]
[420826256,1776595828343,-496.37695948,0.00010872,2]
[420826257,1776595828463,-506.9718871,0.00010872,2]
[420826258,1776595829075,-12.0131374,0.00010873,2]
[420826259,1776595829090,-390.25334962,0.00010873,2]
[420826260,1776595829104,-506.9718871,0.00010873,2]
[420826261,1776595829118,-8986.0662258,0.00010873,2]
[420826262,1776595829132,-10000.01,0.00010873,2]
[420826263,1776595829157,-10000.01,0.00010873,2]
[420826264,1776595830032,-10000.01,0.00010873,2]
[420826265,1776595830198,-10000.01,0.00010873,2]
[420826266,1776595831973,-2473.0,0.0001056,2]
[420826267,1776595831983,-51791.07078257,0.00010873,2]
[420826272,1776595838184,-4628.01340003,0.00010873,2]
[420826273,1776595838291,-1977.15710544,0.00010873,2]
[420826323,1776595838928,-10000.01,0.00010873,2]
[420826338,1776595839058,-10000.01,0.00010873,2]
[420826344,1776595839160,-10000.01,0.00010873,2]
[420826345,1776595839290,-10000.01,0.00010873,2]
[420826352,1776595840090,-262655.48964428,0.00010873,2]
[420826353,1776595840100,-159.8,0.00011,2]
[420826354,1776595840110,-30276.08162151,0.00011099,2]
[420826355,1776595840119,-151.0,0.00011099,2]
[420826356,1776595840128,-152.869871,0.00011099,2]
[420826357,1776595840138,-1000.0,0.00011123,2]
[420826358,1776595840147,-199.24,0.00011146,2]
[420826359,1776595840156,-5843.2290737,0.00011223,2]
[420826360,1776595840166,-167.45,0.00011226,2]
[420826361,1776595840175,-668.53217178,0.00011264,2]
[420826362,1776595840184,-263.28769274,0.00011264,2]
[420826363,1776595840193,-575.31,0.000113,2]
[420826364,1776595840202,-1252.644,0.000114,2]
[420826365,1776595840212,-186.276,0.000114,2]
[420826366,1776595840221,-199.26,0.0001142,2]
[420826367,1776595840230,-1400.53,0.00011507,2]
[420826368,1776595840239,-400.0,0.000116,4]
[420826369,1776595840249,-800.0,0.000117,4]
[420826370,1776595840258,-840.32179295,0.0001176,2]
[420826371,1776595840268,-653.2292713,0.00011765,2]
[420826372,1776595840277,-1300.0,0.000118,4]
[420826373,1776595840287,-166.65918844,0.000119,2]
[420826374,1776595840297,-1700.0,0.000119,4]
[420826375,1776595840306,-151.0,0.000119,2]
[420826376,1776595840316,-151.0,0.000119,2]
[420826377,1776595840325,-151.0,0.000119,2]
[420826378,1776595840334,-177.558554,0.000119,2]
[420826379,1776595840344,-262.51823588,0.000119,2]
[420826383,1776595843132,-416.0,0.0001056,2]
[420826384,1776595843142,-400.0,0.00010873,2]
[420826385,1776595843152,-233.46,0.00010903,2]
[420826386,1776595843161,-16805.68430849,0.00011099,2]
[420826387,1776595843170,-560.21452863,0.0001176,2]
[420826388,1776595843180,-4737.48176412,0.000119,2]
[420826389,1776595843189,-151.0,0.000119,2]
[420826390,1776595843199,-10000.0,0.000119,2]
[420826391,1776595843208,-2368.26898107,0.000119,2]
[420826392,1776595843217,-151.0,0.000119,2]
[420826393,1776595843227,-22445.77559217,0.000119,2]
[420826394,1776595843236,-751.88808851,0.000119,2]
[420826395,1776595843246,-200.0,0.00011903,2]
[420826396,1776595843255,-200.0,0.00011904,2]
[420826397,1776595843265,-500.92228137,0.00011973,2]
[420826398,1776595843274,-500.0,0.00011973,2]
[420826399,1776595843284,-363.55242264,0.0001199,2]
[420826400,1776595843293,-300.0,0.00011999,2]
[420826401,1776595843302,-1103.85013062,0.00011999,3]
[420826402,1776595843312,-155.0,0.00011999,2]
[420826403,1776595843321,-151.0,0.00011999,2]
[420826404,1776595843330,-979.0,0.00012,5]
[420826405,1776595843339,-783.0,0.00012,5]
[420826406,1776595843349,-3942.03674739,0.00012,2]
[420826407,1776595843367,-207.97368798,0.000119,2]
[420826408,1776595843376,-209.02631202,0.00012,2]
[420826416,1776595847626,-1501.74,0.00010773,2]
[420826417,1776595847641,-998.26,0.00010773,2]
[420826418,1776595847651,-300.17,0.00010914,2]
[420826419,1776595847660,-799.95592447,0.00010973,2]
[420826420,1776595847670,-373.47635242,0.0001176,2]
[420826421,1776595847680,-66810.95820537,0.00012,2]
[420826422,1776595847710,-5916.0,0.000109,2]
[420826423,1776595850279,189.0,0.000328,120]
[420826426,1776596122588,150.0,0.00032877,120]
[420826429,1776596293480,-240.0,9.863e-05,2]
[420826430,1776596293509,-260.0,9.863e-05,2]
[420826431,1776596293538,-736.985538,0.00010409,2]
[420826432,1776596293568,-150.0,0.00010509,2]
[420826433,1776596293601,-416.0,0.00010606,2]
[420826434,1776596293630,-300.0,0.00010771,2]
[420826435,1776596293661,-1034.0,0.00010772,2]
[420826436,1776596293693,-190.0,0.00010772,2]
[420826437,1776596293725,-1200.0,0.00010772,2]
[420826438,1776596293757,-300.0,0.00010772,2]
[420826439,1776596293972,-346.038924,0.00010773,2]
[420826440,1776596293991,-10000.01,0.00010773,2]
[420826441,1776596298895,-1734.461324,0.00010773,2]
[420826442,1776596298952,-6531.087352,0.00010773,2]
[420826443,1776596299861,-167.7548,0.00010773,2]
[420826444,1776596299899,-9664.5004,0.00010773,2]
[420826448,1776596388846,1000.0,0.00032876,120]
[420826452,1776596413949,500.0,0.00032877,120]
[420826458,1776596464918,1555.0,0.00032877,120]
[420826463,1776596570849,165.42,0.00030411,120]
[420826468,1776596675094,550.08,0.00032877,120]
[420826469,1776596755818,-260.0,9.863e-05,2]
[420826470,1776596755848,-2473.0,0.00010606,2]
[420826471,1776596755879,-416.0,0.00010606,2]
[420826472,1776596755910,-1200.0,0.00010672,2]
[420826473,1776596755995,-1302.01,0.00010673,2]
[420826474,1776596757962,1456.0,0.00032877,120]
[420826475,1776596758726,-675.1471,0.00010673,2]
[420826476,1776596758758,-3713.3192,0.00010673,2]
[420826477,1776596758790,-500.0,0.00010673,2]
[420826478,1776596760893,-223.0774,0.00010673,2]
[420826479,1776596761869,-276.9226,0.00010673,2]
[420826480,1776596761902,-500.0,0.00010673,2]
[420826481,1776596761936,-224.43006575,0.00010673,2]
[420826482,1776596762022,-7997.3046685,0.00010772,2]
[420826488,1776597032212,-935.3497,0.00010673,2]
[420826489,1776597032221,-1895.6503,0.00010716,2]
[420826490,1776597032233,-577.3497,0.00010716,2]
[420826491,1776597032242,-1090.40503326,0.00010761,2]
[420826492,1776597032266,-491.5847794,0.00010761,2]
[420826493,1776597032322,-418.01018734,0.00010761,2]
[420826494,1776597032331,-1200.0,0.00010765,2]
[420826495,1776597032340,-200.0,0.00010766,2]
[420826496,1776597032349,-151.0,0.00010766,2]
[420826497,1776597032358,-205.49193592,0.00010766,2]
[420826498,1776597032369,-294.50806408,0.00010766,2]
[420826499,1776597032378,-151.0,0.00010766,2]
[420826500,1776597032387,-224.33095253,0.00010766,2]
[420826501,1776597032396,-151.0,0.00010766,2]
[420826502,1776597032406,-61.4802311,0.00010766,2]
[420826503,1776597032417,-89.5197689,0.00010766,2]
[420826504,1776597032427,-151.0,0.00010766,2]
[420826505,1776597032437,-151.0,0.00010766,2]
[420826506,1776597032446,-151.0,0.00010766,2]
[420826507,1776597032456,-151.0,0.00010766,2]
[420826508,1776597032465,-151.0,0.00010766,2]
[420826509,1776597032474,-500.0,0.00010766,2]
[420826510,1776597032483,-151.0,0.00010766,2]
[420826511,1776597032493,-151.0,0.00010766,2]
[420826512,1776597032502,-151.0,0.00010766,2]
[420826513,1776597032511,-151.0,0.00010766,2]
[420826514,1776597032520,-151.0,0.00010766,2]
[420826515,1776597032530,-151.0,0.00010766,2]
[420826516,1776597032539,-151.0,0.00010766,2]
[420826518,1776597032548,-151.0,0.00010766,2]
[420826520,1776597032558,-151.0,0.00010766,2]
[420826522,1776597032567,-151.0,0.00010766,2]
[420826524,1776597032576,-151.0,0.00010766,2]
[420826526,1776597032585,-286.71323757,0.00010766,2]
[420826528,1776597032595,-39.32107608,0.00010772,2]
[420826532,1776597032618,-4699.8752602,0.00010772,2]
[420826547,1776597032696,-330.0,0.00010772,2]
[420826655,1776597040279,-3460.0,0.00010772,2]
[420826657,1776597040294,-1290.08569442,0.00010772,2]
[420826658,1776597040323,-1977.15710544,0.00010772,2]
[420826659,1776597040333,-372.73608226,0.00010772,2]
[420826660,1776597040344,-767.54052114,0.00010772,2]
[420826661,1776597040467,-354.60065788,0.00010772,2]
[420826673,1776597040626,-17.57115272,0.00010772,2]
[420826675,1776597040636,-1000.0,0.00010773,2]
[420826677,1776597040645,-284.65,0.00010809,2]
[420826679,1776597040654,-158.49,0.00010836,2]
[420826713,1776597041056,-3240.0,0.00011127,2]
[420826714,1776597041072,-9308.19,0.00011169,2]
[420826715,1776597041081,-327.76,0.00011198,2]
[420826716,1776597041090,-500.0,0.00011221,2]
[420826717,1776597041101,-1328.27659266,0.00011221,2]
[420826718,1776597041111,-8882.6885148,0.00011221,2]
[420826719,1776597041121,-200.0,0.00011221,2]
[420826720,1776597041131,-194.72792766,0.00011221,2]
[420826721,1776597041141,-670.58624095,0.00011221,2]
[420826722,1776597041150,-151.0,0.00011221,2]
[420826723,1776597041161,-160.0,0.00011221,2]
[420826724,1776597041171,-2000.0,0.00011221,2]
[420826725,1776597041180,-194.72792766,0.00011221,2]
[420826726,1776597041189,-644.79446245,0.00011221,2]
[420826727,1776597041198,-152.51342878,0.00011221,2]
[420826728,1776597041207,-194.72792766,0.00011221,2]
[420826729,1776597041216,-194.72792766,0.00011221,2]
[420826730,1776597041226,-262.44765209,0.00011224,21]
[420826731,1776597041235,-5815.79,0.00011354,2]
[420826732,1776597041244,-903.87776708,0.000114,2]
[420826733,1776597041253,-1594.7178844,0.00011591,2]
[420826735,1776597041262,-27248.47345935,0.000116,2]
[420826736,1776597041271,-200.0,0.000116,4]
[420826737,1776597041282,-2007.34,0.000117,2]
[420826738,1776597041292,-153.56,0.000117,2]
[420826739,1776597041301,-400.0,0.000117,4]
[420826740,1776597041311,-600.0,0.0001174,2]
[420826741,1776597041321,-600.0,0.0001174,2]
[420826742,1776597041331,-600.0,0.0001174,2]
[420826743,1776597041340,-600.0,0.0001174,2]
[420826744,1776597041350,-600.0,0.0001174,2]
[420826745,1776597041360,-2500.0,0.0001174,2]
[420826746,1776597041370,-2500.0,0.0001174,2]
[420826747,1776597041380,-2500.0,0.0001174,2]
[420826748,1776597041391,-2500.0,0.0001174,2]
[420826749,1776597041401,-2500.0,0.0001174,2]
[420826750,1776597041412,-248.98423494,0.0001176,2]
[420826751,1776597041422,-600.0,0.000118,4]
[420826752,1776597041432,-500.0,0.00011848,2]
[420826753,1776597041441,-500.0,0.00011848,2]
[420826754,1776597041450,-500.0,0.00011848,2]
[420826755,1776597041460,-500.0,0.00011848,2]
[420826756,1776597041469,-439.5412393,0.00011848,2]
[420826757,1776597041478,-500.0,0.00011848,2]
[420826758,1776597041488,-500.0,0.00011848,2]
[420826759,1776597041497,-500.0,0.00011848,2]
[420826760,1776597041506,-500.0,0.00011848,2]
[420826761,1776597041515,-195.0,0.00011849,2]
[420826762,1776597041525,-195.0,0.00011849,2]
[420826763,1776597041534,-195.0,0.00011849,2]
[420826764,1776597041544,-195.0,0.00011849,2]
[420826765,1776597041553,-195.0,0.00011849,2]
[420826766,1776597041563,-300.0,0.00011849,2]
[420826767,1776597041572,-300.0,0.00011849,2]
[420826768,1776597041582,-768.1758,0.000119,2]
[420826769,1776597041591,-166.65918844,0.000119,2]
[420826770,1776597041600,-1613.30750158,0.000119,2]
[420826771,1776597041610,-3383.59363464,0.000119,2]
[420826772,1776597041619,-151.41729521,0.000119,2]
[420826773,1776597041629,-158.4454124,0.000119,2]
[420826774,1776597041640,-154.9313538,0.000119,2]
[420826775,1776597041651,-156.19952054,0.000119,2]
[420826776,1776597041660,-5000.0,0.000119,2]
[420826777,1776597041670,-499.37579946,0.000119,2]
[420826778,1776597041680,-900.0,0.000119,4]
[420826779,1776597041690,-1578.84598738,0.000119,2]
[420826780,1776597041699,-14963.85039478,0.000119,2]
[420826781,1776597041708,-9776.6754735,0.000119,2]
[420826782,1776597041717,-11868.39646578,0.000119,2]
[420826783,1776597041748,-808.0336,0.000119,2]
[420826792,1776597043531,-327.365286,0.000119,2]
[420826793,1776597043543,-2121.32052587,0.000119,2]
[420826794,1776597043552,-207.97368796,0.000119,2]
[420826795,1776597043562,-235.64231097,0.000119,2]
[420826796,1776597043572,-601.28312218,0.000119,2]
[420826797,1776597043581,-568.85704632,0.000119,2]
[420826798,1776597043593,-71.57084787,0.000119,2]
[420826799,1776597043602,-181.25066758,0.000119,2]
[420826800,1776597043641,-237.212049,0.000119,2]
[420826801,1776597043651,-79.00819,0.000119,2]
[420826810,1776597046266,-165.98948997,0.0001176,2]
[420826811,1776597046276,-438.54062536,0.000119,2]
[420826812,1776597046287,-200.0,0.00011904,2]
[420826813,1776597046297,-401.05517263,0.00011907,2]
[420826814,1776597046307,-242.36828175,0.0001199,2]
[420826815,1776597046318,-300.0,0.00011999,2]
[420826816,1776597046329,-151.0,0.00011999,2]
[420826817,1776597046338,-151.0,0.00011999,2]
[420826818,1776597046349,-151.0,0.00011999,2]
[420826819,1776597046359,-500.0,0.00011999,2]
[420826820,1776597046368,-500.0,0.00011999,2]
[420826821,1776597046378,-500.0,0.00011999,2]
[420826822,1776597046387,-274.72104651,0.00011999,2]
[420826823,1776597046396,-152.76150605,0.00011999,2]
[420826824,1776597046406,-500.0,0.00011999,2]
[420826825,1776597046415,-197.46387163,0.00011999,2]
[420826826,1776597046425,-354.88032097,0.00011999,2]
[420826827,1776597046434,-550.0,0.00012,5]
[420826828,1776597046443,-439.0,0.00012,5]
[420826829,1776597046452,-250.0,0.00012,2]
[420826830,1776597046463,-3247.70758941,0.00012,2]
[420826831,1776597046475,-31503.01147782,0.00012,2]
[420826832,1776597046486,-8711.38060063,0.00012,2]
[420826833,1776597046498,-788.02158999,0.00012,2]
[420826834,1776597046509,-14035.45352238,0.00012,2]
[420826837,1776597049373,574.97,0.00032603,120]
[420826839,1776597214025,1000.0,0.00032877,120]
[420826840,1776597228119,-260.0,9.863e-05,2]
[420826841,1776597228163,-178.47,0.00010267,2]
[420826842,1776597228206,-500.0,0.00010666,2]
[420826843,1776597228248,-300.0,0.00010672,2]
[420826844,1776597228289,-300.0,0.00010672,2]
[420826845,1776597229368,-6923.07,0.00010673,2]
[420826846,1776597231535,-10000.01,0.00010673,2]
[420826847,1776597234881,1000.0,0.00032876,120]
[420826848,1776597248027,1000.0,0.00032876,120]
[420826849,1776597309987,1239.84,0.00032877,120]
[420826853,1776597695561,-260.0,9.863e-05,2]
[420826854,1776597695591,-632.01513129,0.00010659,2]
[420826855,1776597695620,-300.0,0.00010672,2]
[420826856,1776597695650,-1200.0,0.00010672,2]
[420826857,1776597695727,-5215.97973742,0.00010673,2]
[420826858,1776597701725,-10000.01,0.00010673,2]
[420826859,1776597797279,500.0,0.00025711,120]
[420826860,1776597797599,500.0,0.00026744,120]
[420826861,1776597798021,500.0,0.00027776,120]
[420826862,1776597798433,500.0,0.00028809,120]
[420826863,1776597798774,500.0,0.00029842,120]
[420826864,1776597799133,500.0,0.00030875,120]
[420826865,1776597799603,500.0,0.00031908,120]
[420826867,1776597979428,-260.0,9.863e-05,2]
[420826868,1776597979456,-235.88,9.9e-05,2]
[420826869,1776597979476,-260.0,0.00010673,2]
[420826870,1776597979488,-235.88,0.00010673,2]
[420826871,1776597979503,-9008.25,0.00010673,2]
[420826872,1776597982272,-10000.01,0.00010673,2]
[420826873,1776597982449,-10000.01,0.00010673,2]
[420826874,1776597982633,-10000.01,0.00010673,2]
[420826875,1776597982762,-10000.01,0.00010673,2]
[420826876,1776597982905,-10000.01,0.00010673,2]
[420826877,1776597983035,-4603.56326258,0.00010673,2]
[420826878,1776597983061,-4603.56326258,0.00010673,2]
[420826879,1776597983074,-792.88347484,0.00010673,2]
[420826880,1776597985254,-10000.01,0.00010673,2]
[420826881,1776597997092,-1189.45166258,0.00010673,2]
[420826882,1776597997123,-2311.652,0.00010839,2]
[420826883,1776597997154,-524.80267484,0.00010839,2]
[420826884,1776597997168,-1189.45166258,0.00010839,2]
[420826885,1776597997181,-758.74566258,0.00010839,2]
[420826886,1776597997191,-416.0,0.00010839,2]
[420826887,1776597997201,-250.0,0.00010849,2]
[420826888,1776597997211,-159.98,0.00011047,2]
[420826889,1776598036589,-10000.01,0.00010573,2]
[420826890,1776598037108,-10000.01,0.00010573,2]
[420826891,1776598037123,-10000.01,0.00010573,2]
[420826892,1776598048579,-874.6604,0.00010573,2]
[420826893,1776598048674,-10000.01,0.00010573,2]
[420826894,1776598048844,-10000.01,0.00010573,2]
[420826897,1776598214688,-277.0,9.863e-05,2]
[420826898,1776598214720,-260.0,9.863e-05,2]
[420826899,1776598214752,-284.73,0.00010369,2]
[420826900,1776598214784,-1200.0,0.00010572,2]
[420826901,1776598226766,-165.82,8.711e-05,2]
[420826904,1776598231425,-938.55,0.00010573,2]
[420826905,1776598231532,-4061.81751019,0.00010573,2]
[420826906,1776598231548,-1295.79975787,0.00010573,2]
[420826907,1776598231642,-1510.31,0.00010573,2]
[420826908,1776598231657,-780.47237278,0.00010573,2]
[420826917,1776598238764,-354.25111707,0.00010573,2]
[420826918,1776598239086,-300.39514795,0.00010573,2]
[420826919,1776598239098,-400.0,0.00010573,2]
[420826920,1776598239144,-1503.17647077,0.00010573,2]
[420826921,1776598239156,-432.82469695,0.00010573,2]
[420826945,1776598239634,-1977.15710544,0.00010573,2]
[420826946,1776598239659,-2090.40897658,0.00010573,2]
[420826968,1776598241066,-827.9992444,0.00010573,2]
[420826969,1776598241075,-376.0,0.00010816,2]
[420826970,1776598241085,-394.0,0.0001083,2]
[420826971,1776598241095,-1048.0,0.00010839,2]
[420826972,1776598241104,-3779.0,0.00010839,2]
[420826973,1776598241114,-3529.0,0.00010839,2]
[420826974,1776598241123,-165.82,0.00010889,2]
[420826975,1776598241133,-2473.0,0.00010939,2]
[420826976,1776598241142,-150.0,0.0001105,2]
[420826977,1776598241152,-2500.0,0.00011051,2]
[420826978,1776598241161,-2500.0,0.00011051,2]
[420826979,1776598241171,-2500.0,0.00011051,2]
[420826980,1776598241180,-2500.0,0.00011051,2]
[420826981,1776598241189,-1232.03,0.00011063,2]
[420826982,1776598241200,-1600.0,0.00011206,2]
[420826983,1776598241210,-376.0,0.00011206,2]
[420826984,1776598241220,-522.81,0.00011348,2]
[420826985,1776598241229,-195.0,0.00011406,2]
[420826986,1776598241239,-195.0,0.00011406,2]
[420826987,1776598241248,-195.0,0.00011406,2]
[420826988,1776598241656,-195.0,0.00011406,2]
[420826989,1776598241665,-600.0,0.00011406,2]
[420826990,1776598241675,-600.0,0.00011406,2]
[420826991,1776598241684,-600.0,0.00011406,2]
[420826992,1776598241693,-600.0,0.00011406,2]
[420826993,1776598241703,-600.0,0.00011406,2]
[420826994,1776598241712,-300.0,0.00011406,2]
[420826995,1776598241722,-370.90041676,0.00011406,2]
[420826996,1776598241731,-1000.0,0.000116,2]
[420826997,1776598241740,-300.0,0.000116,4]
[420826998,1776598241749,-2500.0,0.0001163,2]
[420826999,1776598241759,-195.0,0.0001163,2]
[420827000,1776598241768,-1003.1201008,0.0001163,2]
[420827001,1776598241778,-600.0,0.000117,4]
[420827002,1776598241787,-166.46,0.0001172,2]
[420827003,1776598241796,-1605.872,0.000118,2]
[420827004,1776598241806,-153.56,0.000118,2]
[420827005,1776598241815,-900.0,0.000118,4]
[420827006,1776598241825,-150.73593421,0.000119,2]
[420827007,1776598241835,-152.35742152,0.000119,2]
[420827008,1776598241847,-152.18060376,0.000119,2]
[420827009,1776598241857,-151.9223196,0.000119,2]
[420827010,1776598241866,-332.91719964,0.000119,2]
[420827011,1776598241876,-5000.0,0.000119,2]
[420827012,1776598241885,-394.0,0.000119,2]
[420827013,1776598241894,-1300.0,0.000119,4]
[420827014,1776598241904,-13612.60428984,0.000119,2]
[420827015,1776598241913,-8554.59103933,0.000119,2]
[420827016,1776598241922,-250.0,0.00011923,2]
[420827017,1776598241932,-250.0,0.00011923,2]
[420827018,1776598241941,-161.0,0.0001199,2]
[420827019,1776598241950,-161.0,0.0001199,2]
[420827020,1776598241960,-267.18013451,0.0001199,2]
[420827021,1776598241970,-151.0,0.00011993,2]
[420827022,1776598241979,-154.96599412,0.00011993,2]
[420827023,1776598241988,-151.37857925,0.00011993,2]
[420827024,1776598241997,-259.9681719,0.00011999,2]
[420827025,1776598242007,-500.0,0.00011999,2]
[420827026,1776598242016,-500.0,0.00011999,3]